[Event "Titled Tuesday Blitz May 9 Early 2023"]
[White "Gurel, Ediz"]
[Black "Sahib Singh"]
[WhiteFideId "44507356"]
[BlackFideId "25618342"]
[WhiteElo "2352"]
[BlackElo "1934"]
[Result "1/2-1/2"]
[Round "04"]
[TimeControl "180+2"]
[Date "2023.05.09"]
[WhiteClock "0:00:11"]
[BlackClock "0:00:38"]

1. d4 {[%clk 0:03:00]}  d5 {[%clk 0:02:59]} 2. Nf3 {[%clk 0:02:59]}  e6 {[%clk 0:02:58]} 3. c4 {[%clk 0:02:59]}  c6 {[%clk 0:02:58]} 4. Qc2 {[%clk 0:02:57]}  f5 {[%clk 0:02:50]} 5. g3 {[%clk 0:02:45]}  Nf6 {[%clk 0:02:50]} 6. Bg2 {[%clk 0:02:46]}  Bd6 {[%clk 0:02:49]} 7. O-O {[%clk 0:02:46]}  O-O {[%clk 0:02:48]} 8. Nc3 {[%clk 0:02:42]}  a6 {[%clk 0:02:46]} 9. c5 {[%clk 0:02:35]}  Bc7 {[%clk 0:02:46]} 10. b4 {[%clk 0:02:35]}  Nbd7 {[%clk 0:02:43]} 11. a4 {[%clk 0:02:36]}  e5 {[%clk 0:02:43]} 12. dxe5 {[%clk 0:02:32]}  Nxe5 {[%clk 0:02:42]} 13. Nd4 {[%clk 0:02:32]}  g6 {[%clk 0:02:40]} 14. Bh6 {[%clk 0:02:23]}  Re8 {[%clk 0:02:37]} 15. b5 {[%clk 0:02:23]}  Neg4 {[%clk 0:02:36]} 16. Bd2 {[%clk 0:02:11]}  Bd7 {[%clk 0:02:32]} 17. bxc6 {[%clk 0:02:09]}  bxc6 {[%clk 0:02:33]} 18. h3 {[%clk 0:02:06]}  Ne5 {[%clk 0:02:32]} 19. Rab1 {[%clk 0:02:00]}  Nc4 {[%clk 0:02:21]} 20. Bg5 {[%clk 0:01:59]}  Na3 {[%clk 0:02:18]} 21. Qa2 {[%clk 0:01:55]}  Nxb1 {[%clk 0:02:18]} 22. Rxb1 {[%clk 0:01:55]}  Be5 {[%clk 0:02:14]} 23. Rd1 {[%clk 0:01:54]}  Kg7 {[%clk 0:02:12]} 24. Qd2 {[%clk 0:01:43]}  a5 {[%clk 0:02:09]} 25. Nf3 {[%clk 0:01:38]}  Bxc3 {[%clk 0:01:59]} 26. Qxc3 {[%clk 0:01:38]}  h6 {[%clk 0:02:00]} 27. Bc1 {[%clk 0:01:33]}  Rxe2 {[%clk 0:01:58]} 28. Nd4 {[%clk 0:01:31]}  Re8 {[%clk 0:01:55]} 29. Bb2 {[%clk 0:01:27]}  Rb8 {[%clk 0:01:55]} 30. Ba1 {[%clk 0:01:27]}  Rb4 {[%clk 0:01:54]} 31. h4 {[%clk 0:01:09]}  Rxa4 {[%clk 0:01:49]} 32. h5 {[%clk 0:01:08]}  Rc4 {[%clk 0:01:48]} 33. Qf3 {[%clk 0:01:08]}  Rxc5 {[%clk 0:01:30]} 34. hxg6 {[%clk 0:01:07]}  Kxg6 {[%clk 0:01:30]} 35. Bh3 {[%clk 0:01:07]}  Ng4 {[%clk 0:01:25]} 36. Bxg4 {[%clk 0:01:03]}  fxg4 {[%clk 0:01:24]} 37. Qd3+ {[%clk 0:00:56]}  Re4 {[%clk 0:01:25]} 38. Nb3 {[%clk 0:00:56]}  Rb5 {[%clk 0:01:22]} 39. Nd2 {[%clk 0:00:54]}  Bf5 {[%clk 0:01:19]} 40. Nxe4 {[%clk 0:00:54]}  Bxe4 {[%clk 0:01:19]} 41. Qc3 {[%clk 0:00:54]}  Qf8 {[%clk 0:01:17]} 42. Qxc6+ {[%clk 0:00:53]}  Kh5 {[%clk 0:01:12]} 43. Qxb5 {[%clk 0:00:43]}  Qf3 {[%clk 0:01:11]} 44. Qe8+ {[%clk 0:00:42]}  Kg5 {[%clk 0:01:00]} 45. Qd8+ {[%clk 0:00:36]}  Kh5 {[%clk 0:00:58]} 46. Qe8+ {[%clk 0:00:25]}  Kg5 {[%clk 0:00:58]} 47. Qe5+ {[%clk 0:00:26]}  Kg6 {[%clk 0:00:58]} 48. Qf6+ {[%clk 0:00:18]}  Qxf6 {[%clk 0:00:58]} 49. Bxf6 {[%clk 0:00:19]}  Kxf6 {[%clk 0:00:59]} 50. Ra1 {[%clk 0:00:20]}  d4 {[%clk 0:00:57]} 51. Rxa5 {[%clk 0:00:19]}  d3 {[%clk 0:00:51]} 52. Kf1 {[%clk 0:00:20]}  Bf3 {[%clk 0:00:51]} 53. Ke1 {[%clk 0:00:19]}  Be2 {[%clk 0:00:50]} 54. Kd2 {[%clk 0:00:20]}  Kg6 {[%clk 0:00:50]} 55. Ke3 {[%clk 0:00:20]}  h5 {[%clk 0:00:46]} 56. Rd5 {[%clk 0:00:20]}  Bf1 {[%clk 0:00:42]} 57. Kf4 {[%clk 0:00:21]}  Be2 {[%clk 0:00:43]} 58. Rd6+ {[%clk 0:00:21]}  Kf7 {[%clk 0:00:41]} 59. Kg5 {[%clk 0:00:20]}  Ke7 {[%clk 0:00:41]} 60. Rd4 {[%clk 0:00:20]}  Ke6 {[%clk 0:00:42]} 61. Kxh5 {[%clk 0:00:21]}  Ke5 {[%clk 0:00:43]} 62. Rd8 {[%clk 0:00:21]}  Ke4 {[%clk 0:00:43]} 63. Kg5 {[%clk 0:00:12]}  Kf3 {[%clk 0:00:43]} 64. Rf8+ {[%clk 0:00:12]}  Kg2 {[%clk 0:00:42]} 65. Rd8 {[%clk 0:00:12]}  Kxf2 {[%clk 0:00:42]} 66. Kf4 {[%clk 0:00:13]}  Kg2 {[%clk 0:00:37]} 67. Rd7 {[%clk 0:00:12]}  Kf2 {[%clk 0:00:37]} 68. Rd6 {[%clk 0:00:12]}  Kg2 {[%clk 0:00:38]} 69. Rd4 {[%clk 0:00:10]}  Kf2 {[%clk 0:00:38]} 70. Rd6 {[%clk 0:00:09]}  Kg2 {[%clk 0:00:35]} 71. Rd5 {[%clk 0:00:08]}  Kf2 {[%clk 0:00:36]} 72. Rd4 {[%clk 0:00:08]}  Kg2 {[%clk 0:00:36]} 73. Rd7 {[%clk 0:00:07]}  Kf2 {[%clk 0:00:36]} 74. Rd8 {[%clk 0:00:08]}  Kg2 {[%clk 0:00:36]} 75. Rd5 {[%clk 0:00:08]}  Kf2 {[%clk 0:00:37]} 76. Rd4 {[%clk 0:00:09]}  Kg2 {[%clk 0:00:37]} 77. Rxd3 {[%clk 0:00:09]}  Bxd3 {[%clk 0:00:37]} 78. Kxg4 {[%clk 0:00:10]}  Be2+ {[%clk 0:00:38]} 79. Kf4 {[%clk 0:00:11]}  Kh3 {[%clk 0:00:38]} 80. g4 {[%clk 0:00:11]}  Bxg4 {[%clk 0:00:38]} 1/2-1/2


[Site "https://www.chess.com"]

[Event "Titled Tuesday Blitz May 9 Early 2023"]
[White "Sharapov, Evgeny"]
[Black "Sjugirov, Sanan"]
[WhiteFideId "14103133"]
[BlackFideId "4189302"]
[WhiteElo "2367"]
[BlackElo "2569"]
[Result "0-1"]
[Round "04"]
[TimeControl "180+2"]
[Date "2023.05.09"]
[WhiteClock "0:00:20"]
[BlackClock "0:00:22"]

1. e4 {[%clk 0:03:00]}  c5 {[%clk 0:02:59]} 2. Nf3 {[%clk 0:02:59]}  Nc6 {[%clk 0:03:00]} 3. d4 {[%clk 0:03:00]}  cxd4 {[%clk 0:03:00]} 4. Nxd4 {[%clk 0:03:00]}  Nf6 {[%clk 0:03:01]} 5. Nc3 {[%clk 0:03:00]}  d6 {[%clk 0:02:59]} 6. g3 {[%clk 0:02:59]}  g6 {[%clk 0:02:57]} 7. Nde2 {[%clk 0:02:59]}  Bg7 {[%clk 0:02:55]} 8. Bg2 {[%clk 0:02:59]}  Bd7 {[%clk 0:02:55]} 9. O-O {[%clk 0:02:59]}  Qc8 {[%clk 0:02:53]} 10. Nf4 {[%clk 0:02:58]}  h5 {[%clk 0:02:49]} 11. h4 {[%clk 0:02:54]}  O-O {[%clk 0:02:45]} 12. a4 {[%clk 0:02:50]}  Re8 {[%clk 0:02:39]} 13. Ncd5 {[%clk 0:02:47]}  Ne5 {[%clk 0:02:33]} 14. Nxf6+ {[%clk 0:02:44]}  Bxf6 {[%clk 0:02:32]} 15. Nd5 {[%clk 0:02:44]}  Bg7 {[%clk 0:02:32]} 16. Bg5 {[%clk 0:02:42]}  Nc6 {[%clk 0:02:16]} 17. c3 {[%clk 0:02:39]}  Be6 {[%clk 0:02:12]} 18. Kh2 {[%clk 0:02:31]}  Qd7 {[%clk 0:02:09]} 19. Nf4 {[%clk 0:02:26]}  Bc4 {[%clk 0:01:53]} 20. Re1 {[%clk 0:02:25]}  Ne5 {[%clk 0:01:52]} 21. Nd5 {[%clk 0:02:14]}  e6 {[%clk 0:01:35]} 22. Ne3 {[%clk 0:02:08]}  Ba6 {[%clk 0:01:35]} 23. Nc2 {[%clk 0:01:38]}  Nd3 {[%clk 0:01:34]} 24. Nb4 {[%clk 0:01:31]}  Nxe1 {[%clk 0:01:28]} 25. Qxe1 {[%clk 0:01:29]}  Bc4 {[%clk 0:01:26]} 26. a5 {[%clk 0:01:20]}  Rac8 {[%clk 0:01:22]} 27. Rd1 {[%clk 0:01:17]}  Qc7 {[%clk 0:01:21]} 28. Bf4 {[%clk 0:01:10]}  Red8 {[%clk 0:01:11]} 29. Qe3 {[%clk 0:01:01]}  Qxa5 {[%clk 0:00:58]} 30. Bxd6 {[%clk 0:01:00]}  Qa4 {[%clk 0:00:42]} 31. Rd2 {[%clk 0:00:53]}  a5 {[%clk 0:00:41]} 32. Nc2 {[%clk 0:00:52]}  Rxd6 {[%clk 0:00:39]} 33. Rxd6 {[%clk 0:00:51]}  Qxc2 {[%clk 0:00:39]} 34. Rb6 {[%clk 0:00:45]}  Qe2 {[%clk 0:00:29]} 35. Qf4 {[%clk 0:00:39]}  e5 {[%clk 0:00:27]} 36. Qf3 {[%clk 0:00:25]}  Qxf3 {[%clk 0:00:27]} 37. Bxf3 {[%clk 0:00:20]}  Rc7 {[%clk 0:00:22]} 0-1


[Site "https://www.chess.com"]

[Event "Titled Tuesday Blitz May 9 Early 2023"]
[White "ArrestingPieces"]
[Black "Quesada Perez, Yuniesky"]
[BlackFideId "3504409"]
[WhiteElo "2399"]
[BlackElo "2585"]
[Result "1/2-1/2"]
[Round "04"]
[TimeControl "180+2"]
[Date "2023.05.09"]
[WhiteClock "0:00:36"]
[BlackClock "0:00:25"]

1. e4 {[%clk 0:02:45]}  d5 {[%clk 0:02:58]} 2. exd5 {[%clk 0:02:44]}  Qxd5 {[%clk 0:02:59]} 3. Nc3 {[%clk 0:02:41]}  Qa5 {[%clk 0:02:58]} 4. d4 {[%clk 0:02:42]}  Nf6 {[%clk 0:02:56]} 5. Nf3 {[%clk 0:02:42]}  Bf5 {[%clk 0:02:56]} 6. Bc4 {[%clk 0:02:41]}  e6 {[%clk 0:02:56]} 7. Bd2 {[%clk 0:02:41]}  Bb4 {[%clk 0:02:56]} 8. Qe2 {[%clk 0:02:40]}  Nc6 {[%clk 0:02:55]} 9. d5 {[%clk 0:02:29]}  Nd8 {[%clk 0:01:54]} 10. Nd4 {[%clk 0:01:55]}  O-O {[%clk 0:01:53]} 11. Nb3 {[%clk 0:01:50]}  Qb6 {[%clk 0:01:48]} 12. Be3 {[%clk 0:01:50]}  Qd6 {[%clk 0:01:42]} 13. dxe6 {[%clk 0:01:31]}  Nxe6 {[%clk 0:01:36]} 14. Rd1 {[%clk 0:01:31]}  Qc6 {[%clk 0:01:29]} 15. O-O {[%clk 0:01:29]}  Bxc3 {[%clk 0:01:18]} 16. bxc3 {[%clk 0:01:30]}  b6 {[%clk 0:01:13]} 17. Nd4 {[%clk 0:01:19]}  Nxd4 {[%clk 0:01:13]} 18. cxd4 {[%clk 0:01:20]}  Nd5 {[%clk 0:01:05]} 19. Bxd5 {[%clk 0:01:16]}  Qxd5 {[%clk 0:01:05]} 20. c4 {[%clk 0:01:17]}  Qd7 {[%clk 0:00:59]} 21. d5 {[%clk 0:01:17]}  Rfe8 {[%clk 0:00:59]} 22. h3 {[%clk 0:01:14]}  Re4 {[%clk 0:00:58]} 23. Rd4 {[%clk 0:01:07]}  Rae8 {[%clk 0:00:55]} 24. Rfd1 {[%clk 0:01:07]}  h6 {[%clk 0:00:35]} 25. Qf3 {[%clk 0:01:07]}  Bg6 {[%clk 0:00:34]} 26. Rxe4 {[%clk 0:01:06]}  Rxe4 {[%clk 0:00:34]} 27. Rd4 {[%clk 0:01:06]}  Rxd4 {[%clk 0:00:32]} 28. Bxd4 {[%clk 0:01:07]}  Qa4 {[%clk 0:00:33]} 29. Qe2 {[%clk 0:01:07]}  Kh7 {[%clk 0:00:27]} 30. Kh2 {[%clk 0:01:03]}  Qd7 {[%clk 0:00:25]} 31. Qe5 {[%clk 0:00:51]}  f6 {[%clk 0:00:26]} 32. Qe6 {[%clk 0:00:52]}  Bf5 {[%clk 0:00:25]} 33. Qxd7 {[%clk 0:00:47]}  Bxd7 {[%clk 0:00:26]} 34. c5 {[%clk 0:00:38]}  bxc5 {[%clk 0:00:25]} 35. Bxc5 {[%clk 0:00:38]}  a6 {[%clk 0:00:26]} 36. Ba7 {[%clk 0:00:38]}  Kg6 {[%clk 0:00:26]} 37. Bb8 {[%clk 0:00:38]}  c6 {[%clk 0:00:26]} 38. dxc6 {[%clk 0:00:38]}  Bxc6 {[%clk 0:00:26]} 39. a3 {[%clk 0:00:39]}  Kf7 {[%clk 0:00:25]} 40. Bd6 {[%clk 0:00:36]} 1/2-1/2


[Site "https://www.chess.com"]

[Event "Titled Tuesday Blitz May 9 Early 2023"]
[White "Pranav, V"]
[Black "Perez Ponsa, Federico"]
[WhiteFideId "25060783"]
[BlackFideId "117927"]
[WhiteElo "2515"]
[BlackElo "2590"]
[Result "0-1"]
[Round "04"]
[TimeControl "180+2"]
[Date "2023.05.09"]
[WhiteClock "0:00:07"]
[BlackClock "0:00:11"]

1. e4 {[%clk 0:03:00]}  c6 {[%clk 0:02:12]} 2. Nf3 {[%clk 0:03:00]}  d5 {[%clk 0:02:13]} 3. e5 {[%clk 0:02:59]}  Bf5 {[%clk 0:02:13]} 4. Nh4 {[%clk 0:02:58]}  Bc8 {[%clk 0:02:11]} 5. d4 {[%clk 0:02:57]}  c5 {[%clk 0:02:06]} 6. c3 {[%clk 0:02:56]}  Nc6 {[%clk 0:02:04]} 7. Be3 {[%clk 0:02:50]}  e6 {[%clk 0:01:49]} 8. Nf3 {[%clk 0:02:47]}  cxd4 {[%clk 0:01:41]} 9. cxd4 {[%clk 0:02:46]}  Nge7 {[%clk 0:01:41]} 10. Bd3 {[%clk 0:02:42]}  Nf5 {[%clk 0:01:40]} 11. Bxf5 {[%clk 0:02:41]}  exf5 {[%clk 0:01:41]} 12. O-O {[%clk 0:02:40]}  Be7 {[%clk 0:01:41]} 13. Nc3 {[%clk 0:02:38]}  O-O {[%clk 0:01:33]} 14. Ne1 {[%clk 0:02:37]}  Be6 {[%clk 0:01:27]} 15. Nd3 {[%clk 0:02:35]}  Rc8 {[%clk 0:01:08]} 16. Rc1 {[%clk 0:02:31]}  Qd7 {[%clk 0:00:49]} 17. Nf4 {[%clk 0:02:28]}  g5 {[%clk 0:00:44]} 18. Nxe6 {[%clk 0:02:15]}  fxe6 {[%clk 0:00:40]} 19. f4 {[%clk 0:02:15]}  g4 {[%clk 0:00:37]} 20. h3 {[%clk 0:01:58]}  h5 {[%clk 0:00:32]} 21. hxg4 {[%clk 0:01:57]}  hxg4 {[%clk 0:00:33]} 22. Kf2 {[%clk 0:01:56]}  Kg7 {[%clk 0:00:28]} 23. Rh1 {[%clk 0:01:56]}  Rh8 {[%clk 0:00:29]} 24. Qa4 {[%clk 0:01:56]}  Rxh1 {[%clk 0:00:18]} 25. Rxh1 {[%clk 0:01:56]}  Rh8 {[%clk 0:00:18]} 26. Rxh8 {[%clk 0:01:51]}  Kxh8 {[%clk 0:00:19]} 27. g3 {[%clk 0:01:51]}  Kg7 {[%clk 0:00:19]} 28. Ke1 {[%clk 0:01:46]}  Kf7 {[%clk 0:00:19]} 29. Kd2 {[%clk 0:01:41]}  Bb4 {[%clk 0:00:20]} 30. Qd1 {[%clk 0:01:34]}  Qc7 {[%clk 0:00:18]} 31. Qh1 {[%clk 0:01:33]}  Kg7 {[%clk 0:00:13]} 32. Qh5 {[%clk 0:01:32]}  Qf7 {[%clk 0:00:12]} 33. Qh1 {[%clk 0:01:27]}  a6 {[%clk 0:00:12]} 34. Kd3 {[%clk 0:01:25]}  Bxc3 {[%clk 0:00:11]} 35. bxc3 {[%clk 0:01:26]}  Qc7 {[%clk 0:00:10]} 36. Qh5 {[%clk 0:01:17]}  Qf7 {[%clk 0:00:10]} 37. Qh4 {[%clk 0:01:17]}  Qe7 {[%clk 0:00:10]} 38. Qh1 {[%clk 0:01:17]}  Kg6 {[%clk 0:00:11]} 39. Qh8 {[%clk 0:01:15]}  Qg7 {[%clk 0:00:09]} 40. Qc8 {[%clk 0:01:14]}  Qf7 {[%clk 0:00:09]} 41. Bc1 {[%clk 0:01:14]}  Na5 {[%clk 0:00:07]} 42. Ba3 {[%clk 0:01:09]}  Nc4 {[%clk 0:00:08]} 43. Bd6 {[%clk 0:01:09]}  Nb6 {[%clk 0:00:08]} 44. Qd8 {[%clk 0:01:05]}  Nc4 {[%clk 0:00:07]} 45. Bf8 {[%clk 0:01:03]}  Kh7 {[%clk 0:00:07]} 46. Be7 {[%clk 0:00:58]}  Nb2+ {[%clk 0:00:07]} 47. Kc2 {[%clk 0:00:57]}  Nc4 {[%clk 0:00:08]} 48. Bf6 {[%clk 0:00:57]}  Kg6 {[%clk 0:00:05]} 49. a4 {[%clk 0:00:42]}  Qh7 {[%clk 0:00:04]} 50. Bh4 {[%clk 0:00:33]}  Qf7 {[%clk 0:00:03]} 51. Bg5 {[%clk 0:00:31]}  Qg7 {[%clk 0:00:04]} 52. Bf6 {[%clk 0:00:27]}  Qf7 {[%clk 0:00:04]} 53. Bh8 {[%clk 0:00:22]}  Kh7 {[%clk 0:00:04]} 54. Bf6 {[%clk 0:00:11]}  Kg6 {[%clk 0:00:02]} 55. Kb3 {[%clk 0:00:09]}  Nd2+ {[%clk 0:00:03]} 56. Ka2 {[%clk 0:00:08]}  Nc4 {[%clk 0:00:03]} 57. Be7 {[%clk 0:00:07]}  Nd2 {[%clk 0:00:03]} 58. Bb4 {[%clk 0:00:07]}  Ne4 {[%clk 0:00:04]} 59. a5 {[%clk 0:00:04]}  Nxg3 {[%clk 0:00:03]} 60. Qg5+ {[%clk 0:00:04]}  Kh7 {[%clk 0:00:04]} 61. Qh4+ {[%clk 0:00:04]}  Nh5 {[%clk 0:00:04]} 62. c4 {[%clk 0:00:04]}  dxc4 {[%clk 0:00:04]} 63. d5 {[%clk 0:00:05]}  exd5 {[%clk 0:00:03]} 64. e6 {[%clk 0:00:05]}  Qxe6 {[%clk 0:00:03]} 65. Qxh5+ {[%clk 0:00:05]}  Kg7 {[%clk 0:00:04]} 66. Bc3+ {[%clk 0:00:06]}  Kf8 {[%clk 0:00:04]} 67. Qh8+ {[%clk 0:00:06]}  Ke7 {[%clk 0:00:05]} 68. Qg7+ {[%clk 0:00:06]}  Kd6 {[%clk 0:00:05]} 69. Be5+ {[%clk 0:00:06]}  Kc5 {[%clk 0:00:05]} 70. Qf8+ {[%clk 0:00:05]}  Kb5 {[%clk 0:00:05]} 71. Ka3 {[%clk 0:00:04]}  d4 {[%clk 0:00:03]} 72. Qb4+ {[%clk 0:00:03]}  Kc6 {[%clk 0:00:04]} 73. Qb6+ {[%clk 0:00:04]}  Kd5 {[%clk 0:00:04]} 74. Qxd4+ {[%clk 0:00:04]}  Kc6 {[%clk 0:00:04]} 75. Qb6+ {[%clk 0:00:04]}  Kd5 {[%clk 0:00:05]} 76. Qxb7+ {[%clk 0:00:05]}  Qc6 {[%clk 0:00:06]} 77. Qxc6+ {[%clk 0:00:02]}  Kxc6 {[%clk 0:00:06]} 78. Kb4 {[%clk 0:00:03]}  Kd5 {[%clk 0:00:07]} 79. Kc3 {[%clk 0:00:04]}  g3 {[%clk 0:00:07]} 80. Bd4 {[%clk 0:00:04]}  Ke4 {[%clk 0:00:06]} 81. Kxc4 {[%clk 0:00:04]}  Kxf4 {[%clk 0:00:06]} 82. Kc5 {[%clk 0:00:05]}  Ke4 {[%clk 0:00:06]} 83. Bg1 {[%clk 0:00:04]}  f4 {[%clk 0:00:07]} 84. Kb6 {[%clk 0:00:05]}  f3 {[%clk 0:00:08]} 85. Kxa6 {[%clk 0:00:06]}  f2 {[%clk 0:00:09]} 86. Bxf2 {[%clk 0:00:07]}  gxf2 {[%clk 0:00:09]} 87. Kb7 {[%clk 0:00:07]}  f1=Q {[%clk 0:00:10]} 88. a6 {[%clk 0:00:07]}  Qb5+ {[%clk 0:00:11]} 0-1


[Site "https://www.chess.com"]

[Event "Titled Tuesday Blitz May 9 Early 2023"]
[White "Morefield, Jason"]
[Black "Bok, Benjamin"]
[WhiteFideId "30920825"]
[BlackFideId "1017063"]
[WhiteElo "2171"]
[BlackElo "2657"]
[Result "0-1"]
[Round "04"]
[TimeControl "180+2"]
[Date "2023.05.09"]
[WhiteClock "0:00:00"]
[BlackClock "0:00:07"]

1. d4 {[%clk 0:03:00]}  Nf6 {[%clk 0:02:59]} 2. c4 {[%clk 0:03:00]}  e6 {[%clk 0:02:59]} 3. Nf3 {[%clk 0:03:00]}  b6 {[%clk 0:02:59]} 4. g3 {[%clk 0:03:00]}  Ba6 {[%clk 0:02:59]} 5. b3 {[%clk 0:03:00]}  Bb4+ {[%clk 0:02:58]} 6. Bd2 {[%clk 0:03:00]}  Be7 {[%clk 0:02:59]} 7. Bg2 {[%clk 0:03:01]}  O-O {[%clk 0:02:59]} 8. O-O {[%clk 0:03:01]}  d5 {[%clk 0:03:00]} 9. Qc2 {[%clk 0:03:02]}  c5 {[%clk 0:02:49]} 10. dxc5 {[%clk 0:02:55]}  bxc5 {[%clk 0:02:47]} 11. Rd1 {[%clk 0:02:50]}  Nc6 {[%clk 0:02:46]} 12. cxd5 {[%clk 0:02:40]}  exd5 {[%clk 0:02:43]} 13. Bg5 {[%clk 0:02:31]}  Nb4 {[%clk 0:02:11]} 14. Qb2 {[%clk 0:02:06]}  h6 {[%clk 0:02:06]} 15. Bf4 {[%clk 0:02:04]}  d4 {[%clk 0:01:55]} 16. Ne5 {[%clk 0:01:51]}  Rc8 {[%clk 0:01:50]} 17. a3 {[%clk 0:01:50]}  Nbd5 {[%clk 0:01:47]} 18. b4 {[%clk 0:01:44]}  Nxf4 {[%clk 0:01:31]} 19. gxf4 {[%clk 0:01:44]}  Qb6 {[%clk 0:01:10]} 20. Bf3 {[%clk 0:00:56]}  Rfd8 {[%clk 0:01:01]} 21. Nd2 {[%clk 0:00:44]}  c4 {[%clk 0:00:40]} 22. Ne4 {[%clk 0:00:44]}  Nxe4 {[%clk 0:00:26]} 23. Bxe4 {[%clk 0:00:44]}  Bf6 {[%clk 0:00:26]} 24. a4 {[%clk 0:00:26]}  c3 {[%clk 0:00:22]} 25. Qc2 {[%clk 0:00:20]}  Bxe5 {[%clk 0:00:21]} 26. fxe5 {[%clk 0:00:21]}  Qxb4 {[%clk 0:00:20]} 27. Rab1 {[%clk 0:00:18]}  Qc5 {[%clk 0:00:20]} 28. Bf5 {[%clk 0:00:11]}  Rb8 {[%clk 0:00:18]} 29. e6 {[%clk 0:00:08]}  fxe6 {[%clk 0:00:15]} 30. Bxe6+ {[%clk 0:00:08]}  Kh8 {[%clk 0:00:15]} 31. Bh3 {[%clk 0:00:04]}  Qe5 {[%clk 0:00:12]} 32. Rxb8 {[%clk 0:00:03]}  Rxb8 {[%clk 0:00:12]} 33. Bf1 {[%clk 0:00:01]}  Rb2 {[%clk 0:00:09]} 34. Qg6 {[%clk 0:00:02]}  Bxe2 {[%clk 0:00:08]} 35. Bxe2 {[%clk 0:00:00]}  Rxe2 {[%clk 0:00:07]} 0-1


[Site "https://www.chess.com"]

[Event "Titled Tuesday Blitz May 9 Early 2023"]
[White "Terry, Renato"]
[Black "Yuan, Qingyu"]
[WhiteFideId "3803457"]
[BlackFideId "8609772"]
[WhiteElo "2575"]
[BlackElo "2359"]
[Result "1-0"]
[Round "04"]
[TimeControl "180+2"]
[Date "2023.05.09"]
[WhiteClock "0:00:07"]
[BlackClock "0:00:02"]

1. Nf3 {[%clk 0:03:00]}  c5 {[%clk 0:02:57]} 2. e3 {[%clk 0:03:00]}  Nf6 {[%clk 0:02:57]} 3. b3 {[%clk 0:02:55]}  b6 {[%clk 0:02:57]} 4. Bb2 {[%clk 0:02:55]}  e6 {[%clk 0:02:57]} 5. g3 {[%clk 0:02:55]}  Bb7 {[%clk 0:02:57]} 6. Bg2 {[%clk 0:02:56]}  Be7 {[%clk 0:02:54]} 7. O-O {[%clk 0:02:56]}  O-O {[%clk 0:02:54]} 8. d3 {[%clk 0:02:51]}  d5 {[%clk 0:02:53]} 9. Nbd2 {[%clk 0:02:52]}  Nbd7 {[%clk 0:02:52]} 10. Re1 {[%clk 0:02:52]}  Qc7 {[%clk 0:02:46]} 11. e4 {[%clk 0:02:51]}  dxe4 {[%clk 0:02:43]} 12. dxe4 {[%clk 0:02:52]}  Rad8 {[%clk 0:02:40]} 13. Qe2 {[%clk 0:02:51]}  Rfe8 {[%clk 0:02:33]} 14. a3 {[%clk 0:02:50]}  Nb8 {[%clk 0:02:22]} 15. e5 {[%clk 0:02:36]}  Nfd7 {[%clk 0:02:21]} 16. Rad1 {[%clk 0:02:30]}  Nf8 {[%clk 0:02:17]} 17. h4 {[%clk 0:02:27]}  Rd7 {[%clk 0:02:09]} 18. Ne4 {[%clk 0:02:11]}  Red8 {[%clk 0:02:07]} 19. Nd6 {[%clk 0:02:09]}  Ba8 {[%clk 0:01:43]} 20. Rd3 {[%clk 0:02:06]}  Nc6 {[%clk 0:01:28]} 21. Nb5 {[%clk 0:01:22]}  Qb8 {[%clk 0:01:20]} 22. Rxd7 {[%clk 0:01:19]}  Rxd7 {[%clk 0:01:20]} 23. a4 {[%clk 0:01:06]}  Nb4 {[%clk 0:01:13]} 24. Bc3 {[%clk 0:00:54]}  Qd8 {[%clk 0:01:06]} 25. Na3 {[%clk 0:00:49]}  Na2 {[%clk 0:00:59]} 26. Bb2 {[%clk 0:00:48]}  Nb4 {[%clk 0:00:55]} 27. Nc4 {[%clk 0:00:36]}  Bb7 {[%clk 0:00:53]} 28. Bc3 {[%clk 0:00:36]}  h6 {[%clk 0:00:52]} 29. h5 {[%clk 0:00:34]}  Nh7 {[%clk 0:00:50]} 30. Ne3 {[%clk 0:00:19]}  Ba6 {[%clk 0:00:47]} 31. Nc4 {[%clk 0:00:20]}  Bb7 {[%clk 0:00:48]} 32. Ne3 {[%clk 0:00:19]}  Be4 {[%clk 0:00:47]} 33. Bxb4 {[%clk 0:00:17]}  cxb4 {[%clk 0:00:46]} 34. Nc4 {[%clk 0:00:18]}  Bb7 {[%clk 0:00:44]} 35. Nfd2 {[%clk 0:00:19]}  Bxg2 {[%clk 0:00:38]} 36. Kxg2 {[%clk 0:00:19]}  Bc5 {[%clk 0:00:38]} 37. Ne4 {[%clk 0:00:19]}  Qa8 {[%clk 0:00:36]} 38. Qf3 {[%clk 0:00:17]}  Qd5 {[%clk 0:00:35]} 39. Ned6 {[%clk 0:00:15]}  Ng5 {[%clk 0:00:23]} 40. Qxd5 {[%clk 0:00:15]}  exd5 {[%clk 0:00:24]} 41. Ne3 {[%clk 0:00:15]}  Bxd6 {[%clk 0:00:22]} 42. exd6 {[%clk 0:00:16]}  Rxd6 {[%clk 0:00:22]} 43. Rd1 {[%clk 0:00:16]}  d4 {[%clk 0:00:17]} 44. Nf5 {[%clk 0:00:17]}  Rd7 {[%clk 0:00:14]} 45. Rxd4 {[%clk 0:00:16]}  Rc7 {[%clk 0:00:10]} 46. Ne3 {[%clk 0:00:12]}  Ne6 {[%clk 0:00:10]} 47. Rxb4 {[%clk 0:00:12]}  Kf8 {[%clk 0:00:09]} 48. Re4 {[%clk 0:00:12]}  Ke8 {[%clk 0:00:07]} 49. b4 {[%clk 0:00:13]}  Rc3 {[%clk 0:00:06]} 50. f4 {[%clk 0:00:11]}  Kd7 {[%clk 0:00:06]} 51. Kf2 {[%clk 0:00:11]}  Ra3 {[%clk 0:00:06]} 52. b5 {[%clk 0:00:12]}  Nc5 {[%clk 0:00:06]} 53. Rd4+ {[%clk 0:00:12]}  Ke6 {[%clk 0:00:05]} 54. Rd8 {[%clk 0:00:09]}  Rxa4 {[%clk 0:00:05]} 55. Kf3 {[%clk 0:00:08]}  g6 {[%clk 0:00:05]} 56. Re8+ {[%clk 0:00:07]}  Kd7 {[%clk 0:00:05]} 57. Rh8 {[%clk 0:00:07]}  gxh5 {[%clk 0:00:05]} 58. Rxh6 {[%clk 0:00:07]}  Rb4 {[%clk 0:00:05]} 59. c4 {[%clk 0:00:03]}  Rb3 {[%clk 0:00:05]} 60. Rxh5 {[%clk 0:00:04]}  Nd3 {[%clk 0:00:05]} 61. Ke2 {[%clk 0:00:02]}  Nb2 {[%clk 0:00:05]} 62. Rd5+ {[%clk 0:00:02]}  Ke6 {[%clk 0:00:04]} 63. Re5+ {[%clk 0:00:03]}  Kd7 {[%clk 0:00:04]} 64. Rf5 {[%clk 0:00:03]}  Ke8 {[%clk 0:00:04]} 65. Re5+ {[%clk 0:00:03]}  Kd7 {[%clk 0:00:04]} 66. g4 {[%clk 0:00:03]}  Rc3 {[%clk 0:00:04]} 67. Kd2 {[%clk 0:00:03]}  Ra3 {[%clk 0:00:03]} 68. Kc2 {[%clk 0:00:02]}  Na4 {[%clk 0:00:04]} 69. g5 {[%clk 0:00:02]}  Rc3+ {[%clk 0:00:03]} 70. Kd2 {[%clk 0:00:02]}  Rb3 {[%clk 0:00:04]} 71. Rd5+ {[%clk 0:00:03]}  Ke8 {[%clk 0:00:04]} 72. Re5+ {[%clk 0:00:04]}  Kf8 {[%clk 0:00:04]} 73. Nd5 {[%clk 0:00:04]}  Nc5 {[%clk 0:00:04]} 74. Nf6 {[%clk 0:00:04]}  Rd3+ {[%clk 0:00:04]} 75. Ke2 {[%clk 0:00:04]}  Rd8 {[%clk 0:00:04]} 76. Ke3 {[%clk 0:00:04]}  Kg7 {[%clk 0:00:04]} 77. Nd5 {[%clk 0:00:04]}  Kg6 {[%clk 0:00:04]} 78. Re7 {[%clk 0:00:04]}  Rh8 {[%clk 0:00:03]} 79. Rxa7 {[%clk 0:00:04]}  Rh3+ {[%clk 0:00:03]} 80. Ke2 {[%clk 0:00:04]}  Kf5 {[%clk 0:00:03]} 81. Rxf7+ {[%clk 0:00:04]}  Ke4 {[%clk 0:00:03]} 82. Re7+ {[%clk 0:00:04]}  Kd4 {[%clk 0:00:04]} 83. Nxb6 {[%clk 0:00:04]}  Ne4 {[%clk 0:00:03]} 84. Rd7+ {[%clk 0:00:04]}  Kc5 {[%clk 0:00:03]} 85. Rb7 {[%clk 0:00:04]}  Kd4 {[%clk 0:00:03]} 86. Rd7+ {[%clk 0:00:04]}  Kc5 {[%clk 0:00:04]} 87. Nd5 {[%clk 0:00:04]}  Kxc4 {[%clk 0:00:04]} 88. b6 {[%clk 0:00:05]}  Nc5 {[%clk 0:00:03]} 89. Rd8 {[%clk 0:00:05]}  Ne6 {[%clk 0:00:03]} 90. Rd6 {[%clk 0:00:05]}  Nd4+ {[%clk 0:00:03]} 91. Kf2 {[%clk 0:00:06]}  Nf5 {[%clk 0:00:02]} 92. b7 {[%clk 0:00:05]}  Nxd6 {[%clk 0:00:02]} 93. b8=Q {[%clk 0:00:05]}  Ne4+ {[%clk 0:00:03]} 94. Kg2 {[%clk 0:00:05]}  Rg3+ {[%clk 0:00:04]} 95. Kh2 {[%clk 0:00:06]}  Kxd5 {[%clk 0:00:04]} 96. Qe5+ {[%clk 0:00:06]}  Kc4 {[%clk 0:00:03]} 97. Qxe4+ {[%clk 0:00:07]}  Kc3 {[%clk 0:00:02]} 98. Kxg3 {[%clk 0:00:07]} 1-0


[Site "https://www.chess.com"]